bitfinex/quotes_SOLUSD_20241111
["timestamp","ask_amount","ask_price","bid_price","bid_amount"]
[1731297603715,14.94108923,210.05,209.97,16.6689]
[1731297603909,4.8587,210.14,209.97,16.6689]
[1731297604107,14.94108923,210.06,209.99,14.94108923]
[1731297604616,14.94108923,210.05,209.98,31.60918923]
[1731297604821,14.94108923,210.05,209.98,16.6681]
[1731297605002,14.94108923,210.05,209.98,31.60918923]
[1731297605402,14.94108923,210.06,209.99,14.94108923]
[1731297605599,38.71797323,210.05,209.98,31.60918923]
[1731297605920,14.94108923,210.04,209.98,16.6681]
[1731297606310,23.776884,210.05,209.99,14.94108923]
[1731297606711,14.94108923,210.08,210.01,14.94108923]
[1731297607723,14.94108923,210.09,210.02,16.665]
[1731297607921,14.94108923,210.1,210.03,14.94108923]
[1731297608127,14.94108923,210.1,210.02,16.665]
[1731297608128,14.94108923,210.08,210.02,16.665]
[1731297608511,14.94108923,210.05,210.02,11.9036]
[1731297608820,14.94108923,210.03,209.98,16.6679]
[1731297609126,14.94108923,210.1,209.96,30.50008923]
[1731297609127,14.94108923,209.99,209.96,15.559]
[1731297609426,23.776884,210.04,209.94,16.6712]
[1731297609626,14.94108923,210.01,209.94,16.6712]
[1731297609929,23.776884,210.05,209.94,16.6712]
[1731297610105,14.94108923,210.04,209.97,14.94108923]
[1731297610501,38.71797323,210.05,209.98,14.94108923]
[1731297610711,14.94108923,210.08,210.01,14.94108923]
[1731297611318,22.788,210.12,209.96,6.4003]
[1731297611319,27.5473,210.12,210.02,14.94108923]
[1731297611521,14.94108923,210.08,210.01,14.94108923]
[1731297611814,2.13422296,210.16,210.02,14.94108923]
[1731297612108,14.94108923,210.11,210.04,14.94108923]
[1731297612314,14.94108923,210.11,210.03,15.6828]
[1731297612315,0.1,210.15,210.03,15.6828]
[1731297612506,14.94108923,210.05,210.01,11.9041]
[1731297613029,14.94108923,210.02,209.98,15.6828]
[1731297613322,14.94108923,210.01,209.98,15.6828]
[1731297613903,14.94108923,210.02,209.98,15.6828]
[1731297614224,14.94108923,210.03,209.98,15.6828]
[1731297614725,14.94108923,210.02,209.98,15.6828]
[1731297614907,14.94108923,210.01,209.98,15.6828]
[1731297615107,14.94108923,210.0,209.95,16.67]
[1731297615307,28.537984,210.04,209.95,16.67]
[1731297615308,14.94108923,209.99,209.95,16.67]
[1731297615509,14.94108923,209.98,209.95,11.9071]
[1731297615809,28.537984,210.04,209.92,16.0522]
[1731297615810,38.71797323,209.97,209.92,16.0522]
[1731297616009,14.94108923,209.95,209.91,4.7639]
[1731297616226,14.94108923,209.93,209.89,16.6746]
[1731297616622,14.94108923,209.93,209.89,11.9104]
[1731297616821,14.94108923,209.93,209.87,15.2448]
[1731297616822,14.94108923,209.91,209.87,20.0095]
[1731297617312,38.71797323,209.92,209.87,20.0095]
[1731297618337,14.94108923,209.9,209.85,4.7651]
[1731297618511,14.94108923,209.86,209.82,15.3109]
[1731297618835,14.94108923,209.85,209.79,11.9163]
[1731297619328,14.94108923,209.8,209.77,15.3109]
[1731297619538,14.94108923,209.78,209.74,11.9193]
[1731297619829,14.94108923,209.76,209.74,11.9193]
[1731297620012,14.94108923,209.76,209.75,4.93100868]
[1731297621235,43.48527323,209.76,209.75,9.64629995]
[1731297621410,23.776884,209.75,209.71,4.71529127]
[1731297621612,14.94108923,209.72,209.71,4.71529127]
[1731297621815,14.94108923,209.72,209.71,4.91701963]
[1731297622326,14.94108923,209.72,209.71,9.6323109]
[1731297622533,14.94108923,209.72,209.71,4.91701963]
[1731297623523,14.94108923,209.72,209.71,9.6323109]
[1731297623710,14.94108923,209.72,209.66,4.7694]
[1731297623917,14.94108923,209.71,209.66,4.7694]
[1731297624233,14.94108923,209.74,209.68,16.692]
[1731297624534,14.94108923,209.75,209.69,4.89378601]
[1731297624716,14.94108923,209.75,209.7,4.89378601]
[1731297625031,14.94108923,209.77,209.71,4.89378601]
[1731297625231,14.94108923,209.79,209.72,19.83487524]
[1731297625410,14.94108923,209.79,209.73,4.89378601]
[1731297625610,14.94108923,209.79,209.74,4.89378601]
[1731297625831,14.94108923,209.8,209.75,4.89378601]
[1731297626036,14.94108923,209.81,209.76,4.89378601]
[1731297626224,14.94108923,209.83,209.77,4.89378601]
[1731297626433,14.94108923,209.83,209.76,19.70828923]
[1731297626434,14.94108923,209.83,209.78,4.89378601]
[1731297626733,14.94108923,209.83,209.76,19.70828923]
[1731297626734,14.94108923,209.83,209.76,31.62658923]
[1731297627026,14.94108923,209.8,209.77,4.87822678]
[1731297627233,14.94108923,209.8,209.78,4.87822678]
[1731297627420,14.94108923,209.8,209.79,4.87822678]
[1731297628628,14.94108923,209.81,209.79,4.87822678]
[1731297628938,14.94108923,209.83,209.8,4.87822678]
[1731297629138,14.94108923,209.83,209.81,4.87822678]
[1731297629312,14.94108923,209.82,209.78,4.7667]
[1731297629716,14.94108923,209.83,209.78,4.7667]
[1731297629930,14.94108923,209.86,209.79,14.94108923]
[1731297630128,6.3875,209.95,209.77,6.5381]
[1731297630129,14.94108923,209.89,209.77,6.5381]
[1731297630337,6.3875,209.95,209.84,14.94108923]
[1731297630338,14.94108923,209.91,209.84,14.94108923]
[1731297630517,6.3875,209.95,209.84,14.94108923]
[1731297630724,14.94108923,209.92,209.84,14.94108923]
[1731297631227,14.94108923,209.94,209.87,14.94108923]
[1731297631434,14.94108923,209.93,209.85,14.94108923]
[1731297631636,14.94108923,209.91,209.84,14.94108923]
[1731297632026,14.94108923,209.91,209.85,4.7653]
[1731297632229,14.94108923,209.91,209.84,26.85468923]
[1731297632437,14.94108923,209.9,209.84,16.6791]
[1731297632818,14.94108923,209.91,209.84,31.62018923]
[1731297633027,14.94108923,209.99,209.85,14.94108923]
[1731297633028,14.94108923,209.92,209.85,14.94108923]
[1731297633641,14.94108923,209.94,209.87,14.94108923]
[1731297633825,14.94108923,209.93,209.86,14.94108923]
[1731297634224,14.94108923,209.92,209.85,31.61958923]
[1731297634737,14.94108923,209.91,209.85,16.6785]
[1731297635048,14.94108923,209.86,209.81,4.766]
[1731297635728,14.94108923,209.84,209.8,11.9158]
[1731297635923,14.94108923,209.84,209.8,16.6822]
[1731297636119,14.94108923,209.86,209.8,16.6822]
[1731297636329,4.7632,209.94,209.8,31.62328923]
[1731297636330,14.94108923,209.87,209.8,31.62328923]
[1731297636937,21.78081488,209.86,209.8,16.6822]
[1731297637328,21.78081488,209.85,209.8,16.6822]
[1731297637524,21.78081488,209.84,209.8,16.6822]
[1731297638431,21.78081488,209.84,209.8,11.9158]
[1731297638637,21.78081488,209.83,209.8,11.9158]
[1731297638827,21.78081488,209.84,209.8,11.9158]
[1731297639437,21.78081488,209.85,209.8,16.6822]
[1731297639950,0.1,209.94,209.8,16.6822]
[1731297639951,21.78081488,209.86,209.8,16.6822]
[1731297640250,21.78081488,209.88,209.8,38.46301488]
[1731297640434,21.78081488,209.87,209.8,38.46301488]
[1731297640981,21.78081488,209.88,209.81,21.78081488]
[1731297641131,21.78081488,209.88,209.82,4.7659]
[1731297641448,21.78081488,209.88,209.82,16.6808]
[1731297641656,21.78081488,209.86,209.82,16.6808]
[1731297641833,21.78081488,209.85,209.82,11.9149]
[1731297642033,21.78081488,209.87,209.82,16.6808]
[1731297642946,21.78081488,209.89,209.82,38.46161488]
[1731297643163,21.78081488,209.9,209.83,21.78081488]
[1731297643639,21.78081488,209.93,209.86,21.78081488]
[1731297643837,21.78081488,209.92,209.85,21.78081488]
[1731297644037,21.78081488,209.9,209.84,16.6793]
[1731297644262,21.78081488,209.91,209.84,38.46011488]
[1731297645049,21.78081488,209.92,209.84,38.46011488]
[1731297645429,21.78081488,209.92,209.85,21.78081488]
[1731297646138,21.78081488,209.92,209.86,16.6777]
[1731297647552,21.78081488,209.92,209.84,21.78081488]
[1731297648434,21.78081488,209.93,209.86,21.78081488]
[1731297648645,21.78081488,209.95,209.88,21.78081488]
[1731297648841,21.78081488,209.93,209.86,11.9127]
[1731297649754,21.78081488,209.92,209.86,11.9127]
[1731297650138,21.78081488,209.91,209.86,11.9127]
[1731297651447,21.78081488,209.9,209.86,11.9127]
[1731297652661,21.78081488,209.87,209.81,16.6812]
[1731297652866,21.78081488,209.85,209.81,16.6812]
[1731297653040,21.78081488,209.9,209.81,16.6812]
[1731297653041,21.78081488,209.84,209.81,11.915]
[1731297653242,21.78081488,209.87,209.81,16.6812]
[1731297653657,21.78081488,209.86,209.81,16.6812]
[1731297653851,21.78081488,209.85,209.81,16.6812]
[1731297654166,21.78081488,209.84,209.81,16.6812]
[1731297654365,21.78081488,209.85,209.81,16.6812]
[1731297655246,21.78081488,209.84,209.81,16.6812]
[1731297655642,21.78081488,209.85,209.81,16.6812]
[1731297656859,21.78081488,209.84,209.81,16.6812]
[1731297657056,21.78081488,209.83,209.79,21.2736]
[1731297657260,21.78081488,209.81,209.77,4.7669]
[1731297657458,21.78081488,209.79,209.69,4.7689]
[1731297657670,21.78081488,209.74,209.69,4.7689]
[1731297658267,21.78081488,209.8,209.69,4.7689]
[1731297658268,21.78081488,209.75,209.69,4.7689]
[1731297658463,21.78081488,209.75,209.69,16.6912]
[1731297658766,13.62826269,209.76,209.69,16.6912]
[1731297659466,13.62826269,209.74,209.69,16.6912]
[1731297660445,13.62826269,209.74,209.69,11.9223]
[1731297660662,13.62826269,209.75,209.69,11.9223]
[1731297661762,13.62826269,209.75,209.69,16.6912]
[1731297661967,13.62826269,209.73,209.69,16.6912]
[1731297662863,13.62826269,209.72,209.69,16.6912]
[1731297663064,13.62826269,209.72,209.69,11.9223]
[1731297663272,20.0,209.82,209.69,11.9223]
[1731297663494,13.62826269,209.78,209.7,13.62826269]
[1731297663767,13.62826269,209.76,209.69,11.9223]
[1731297664768,13.62826269,209.75,209.69,11.9223]
[1731297664971,13.62826269,209.75,209.69,16.6912]
[1731297665366,13.62826269,209.77,209.69,30.31946269]
[1731297665553,13.62826269,209.77,209.7,13.62826269]
[1731297665869,13.62826269,209.8,209.73,13.62826269]
[1731297666070,13.62826269,209.81,209.74,13.62826269]
[1731297666568,13.62826269,209.77,209.71,16.1906]
[1731297666942,13.62826269,209.75,209.71,16.1906]
[1731297667147,13.62826269,209.74,209.71,16.1906]
[1731297667365,13.62826269,209.73,209.69,11.9223]
[1731297667766,13.62826269,209.8,209.69,11.9223]
[1731297667767,13.62826269,209.74,209.69,16.6912]
[1731297668772,13.62826269,209.73,209.69,16.6912]
[1731297669273,13.62826269,209.75,209.69,16.6912]
[1731297669468,13.62826269,209.73,209.69,16.6912]
[1731297669671,13.62826269,209.72,209.67,4.7692]
[1731297669976,13.62826269,209.71,209.66,15.7466]
[1731297670281,13.62826269,209.69,209.66,15.7466]
[1731297670572,13.62826269,209.69,209.64,16.6947]
[1731297670870,13.62826269,209.67,209.64,11.9247]
[1731297671078,13.62826269,209.67,209.59,13.62826269]
[1731297671079,13.62826269,209.67,209.59,25.55606269]
[1731297671761,13.62826269,209.66,209.59,11.9278]
[1731297672077,13.62826269,209.66,209.59,25.55606269]
[1731297672760,13.62826269,209.68,209.6,13.62826269]
[1731297673168,13.62826269,209.66,209.6,4.7708]
[1731297674174,23.776884,209.65,209.59,11.9278]
[1731297674477,16.688,209.73,209.6,13.62826269]
[1731297674653,13.62826269,209.68,209.61,13.62826269]
[1731297674853,13.62826269,209.7,209.62,13.62826269]
[1731297675052,13.62826269,209.74,209.66,13.62826269]
[1731297675256,13.62826269,209.74,209.67,13.62826269]
[1731297675467,13.62826269,209.74,209.66,30.32186269]
[1731297675671,13.62826269,209.73,209.66,30.32186269]
[1731297675863,13.62826269,209.72,209.66,16.6936]
[1731297676064,13.62826269,209.71,209.66,11.924]
[1731297676455,13.62826269,209.71,209.64,13.62826269]
[1731297676689,4.7671,209.77,209.66,13.62826269]
[1731297676690,13.62826269,209.73,209.66,13.62826269]
[1731297676971,13.62826269,209.74,209.67,13.62826269]
[1731297677358,37.40514669,209.76,209.68,13.62826269]
[1731297677769,13.62826269,209.75,209.68,13.62826269]
[1731297678510,13.62826269,209.78,209.71,13.62826269]
[1731297678674,18.39496269,209.79,209.72,13.62826269]
[1731297679176,13.62826269,209.8,209.73,13.62826269]
[1731297679374,4.7663,209.81,209.73,13.62826269]
[1731297679559,13.62826269,209.8,209.73,13.62826269]
[1731297679960,4.7663,209.81,209.74,13.62826269]
[1731297680259,18.39456269,209.81,209.74,13.62826269]
[1731297680460,13.62826269,209.81,209.74,13.62826269]
[1731297681157,23.776884,209.8,209.74,13.62826269]
[1731297681361,37.40514669,209.8,209.73,13.62826269]
[1731297681778,23.776884,209.8,209.73,18.39616269]
[1731297681972,13.62826269,209.81,209.73,30.31616269]
[1731297684185,13.62826269,209.8,209.73,30.31616269]
[1731297684369,13.62826269,209.79,209.73,11.92]
[1731297685384,13.62826269,209.78,209.73,11.92]
[1731297685888,28.543084,209.81,209.73,11.92]
[1731297685889,13.62826269,209.8,209.73,25.54826269]
[1731297686185,37.40514669,209.81,209.73,11.92]
[1731297686481,13.62826269,209.79,209.74,4.7676]
[1731297686685,13.62826269,209.78,209.74,4.7676]
[1731297687185,13.62826269,209.78,209.73,11.92]
[1731297687369,13.62826269,209.8,209.73,30.31626269]
[1731297687566,13.62826269,209.83,209.76,13.62826269]
[1731297687881,13.62826269,209.86,209.79,13.62826269]
[1731297688290,13.62826269,209.85,209.78,13.62826269]
[1731297688474,13.62826269,209.87,209.8,13.62826269]
[1731297689766,13.62826269,209.86,209.79,13.62826269]
[1731297689978,4.7647,209.88,209.78,11.9168]
[1731297689979,13.62826269,209.85,209.78,11.9168]
[1731297690288,37.40514669,209.84,209.78,11.9168]
[1731297690893,13.62826269,209.82,209.78,11.9168]
[1731297691187,13.62826269,209.81,209.78,11.9168]
[1731297691486,13.62826269,209.79,209.73,16.6875]
[1731297691787,13.62826269,209.78,209.73,16.6875]
[1731297691999,13.62826269,209.76,209.73,11.9196]
[1731297692680,13.62826269,209.76,209.7,4.7686]
[1731297693083,37.40514669,209.75,209.7,11.9217]
[1731297693292,13.62826269,209.74,209.7,11.9217]
[1731297693476,37.40514669,209.73,209.66,4.7695]
[1731297693876,37.40514669,209.73,209.66,16.6935]
[1731297694081,13.62826269,209.72,209.66,11.924]
[1731297694285,13.62826269,209.71,209.66,11.924]
[1731297694478,28.544984,209.73,209.66,11.924]
[1731297694479,42.17324669,209.73,209.66,30.32186269]
[1731297694685,13.62826269,209.71,209.66,11.924]
[1731297694890,23.776884,209.71,209.64,13.62826269]
[1731297695078,23.776884,209.69,209.62,4.7704]
[1731297695271,37.40514669,209.67,209.62,4.7704]
[1731297695473,13.62826269,209.67,209.62,4.7704]
[1731297695684,37.40514669,209.66,209.61,11.9266]
[1731297696275,23.776884,209.67,209.61,11.9266]
[1731297696498,13.62826269,209.66,209.61,11.9266]
[1731297696791,6.5268,209.71,209.56,4.97416525]
[1731297696792,23.776884,209.61,209.56,4.97416525]
[1731297696973,13.62826269,209.61,209.55,16.7019]
[1731297697173,23.776884,209.61,209.55,30.33016269]
[1731297697377,37.40514669,209.61,209.55,16.7019]
[1731297697587,23.776884,209.61,209.55,30.33016269]
[1731297697779,13.62826269,209.6,209.55,16.7019]
[1731297698097,37.40514669,209.61,209.55,16.7019]
[1731297698879,13.62826269,209.62,209.55,30.33016269]
[1731297699184,13.62826269,209.63,209.56,13.62826269]
[1731297699598,23.776884,209.62,209.56,13.62826269]
[1731297699796,23.776884,209.62,209.55,30.33016269]
[1731297700097,13.62826269,209.6,209.55,16.7019]
[1731297700596,13.62826269,209.59,209.54,15.0931]
[1731297700778,37.40514669,209.58,209.52,4.7726]
[1731297700977,23.776884,209.58,209.52,18.40086269]
[1731297701498,13.62826269,209.56,209.5,16.7062]
[1731297701807,13.62826269,209.53,209.48,4.7736]
[1731297702097,13.62826269,209.52,209.48,4.7736]
[1731297702300,13.62826269,209.52,209.46,4.7741]
[1731297702487,13.62826269,209.51,209.46,4.7741]
[1731297702676,13.62826269,209.5,209.46,4.7741]
[1731297703287,23.776884,209.54,209.42,4.775]
[1731297703288,13.62826269,209.48,209.42,4.775]
[1731297703881,13.62826269,209.5,209.43,13.62826269]
[1731297704080,23.776884,209.49,209.44,13.62826269]
[1731297704395,23.776884,209.51,209.45,13.62826269]
[1731297704607,13.62826269,209.53,209.46,13.62826269]
[1731297704906,4.7714,209.58,209.42,16.7127]
[1731297704907,45.63194249,209.52,209.45,21.85505849]
[1731297705402,23.776884,209.52,209.46,21.85505849]
[1731297705580,21.85505849,209.53,209.46,21.85505849]
[1731297705781,23.776884,209.53,209.47,21.85505849]
[1731297705980,21.85505849,209.54,209.48,21.85505849]
[1731297706196,4.7715,209.58,209.48,21.85505849]
[1731297706197,21.85505849,209.55,209.48,21.85505849]
[1731297706594,22.5998,209.59,209.43,40.5862]
[1731297706595,21.85505849,209.58,209.51,21.85505849]
[1731297706900,21.85505849,209.62,209.55,21.85505849]
[1731297707406,21.85505849,209.59,209.53,21.85505849]
[1731297707703,21.85505849,209.61,209.54,21.85505849]
[1731297707886,21.85505849,209.6,209.53,21.85505849]
[1731297708605,21.85505849,209.6,209.47,0.1]
[1731297708606,21.85505849,209.61,209.54,21.85505849]
[1731297709009,21.85505849,209.62,209.54,21.85505849]
[1731297709303,23.776884,209.61,209.54,21.85505849]
[1731297709610,21.85505849,209.63,209.56,21.85505849]
[1731297710197,21.85505849,209.64,209.57,21.85505849]
[1731297710395,6.4099,209.65,209.5,21.85505849]
[1731297710396,21.85505849,209.65,209.58,21.85505849]
[1731297710599,21.85505849,209.67,209.6,21.85505849]
[1731297711903,21.85505849,209.69,209.62,21.85505849]
[1731297712406,21.85505849,209.7,209.63,21.85505849]
[1731297712792,21.85505849,209.7,209.64,16.6952]
[1731297713603,21.85505849,209.71,209.64,38.55025849]
[1731297713813,21.85505849,209.73,209.66,21.85505849]
[1731297714304,21.85505849,209.74,209.67,21.85505849]
[1731297714496,21.85505849,209.75,209.68,21.85505849]
[1731297714696,21.85505849,209.77,209.7,21.85505849]
[1731297714901,22.0681,209.85,209.75,21.85505849]
[1731297715106,21.85505849,209.84,209.77,21.85505849]
[1731297715286,21.85505849,209.83,209.76,21.85505849]
[1731297715486,6.6148,209.85,209.7,21.85505849]
[1731297715487,21.85505849,209.82,209.75,21.85505849]
[1731297715711,21.85505849,209.83,209.76,21.85505849]
[1731297717611,21.85505849,209.86,209.78,26.62185849]
[1731297717791,21.85505849,209.88,209.81,21.85505849]
[1731297718108,21.85505849,209.92,209.85,21.85505849]
[1731297718418,21.85505849,209.9,209.83,21.85505849]
[1731297718904,21.85505849,209.92,209.85,21.85505849]
[1731297719512,45.63194249,209.91,209.84,21.85505849]
[1731297720314,45.63194249,209.91,209.84,26.62035849]
[1731297720915,45.63194249,209.91,209.84,4.7653]
[1731297721093,45.63194249,209.91,209.84,21.85505849]
[1731297721296,21.85505849,209.93,209.85,21.85505849]
[1731297721507,21.85505849,209.96,209.88,21.85505849]
[1731297721811,27.92325849,210.0,209.93,21.85505849]
[1731297722008,21.85505849,210.0,209.93,21.85505849]
[1731297722209,2.18271068,210.15,209.94,22.2564]
[1731297722418,21.85505849,210.16,210.09,21.85505849]
[1731297722716,4.7566,210.24,210.13,21.85505849]
[1731297723013,4.95409501,210.2,210.15,21.85505849]
[1731297723223,4.95409501,210.2,210.17,21.85505849]
[1731297723539,21.85505849,210.27,210.19,21.85505849]
[1731297723713,21.85505849,210.21,210.12,4.7591]
[1731297723902,21.85505849,210.17,210.08,11.8997]
[1731297724111,21.85505849,210.15,210.08,11.8997]
[1731297724289,21.85505849,210.13,210.08,11.8997]
[1731297726304,21.85505849,210.15,210.08,11.8997]
[1731297727300,21.85505849,210.15,210.08,16.6597]
[1731297728095,21.85505849,210.13,210.08,16.6597]
[1731297728401,21.85505849,210.11,210.08,16.6597]
[1731297729112,21.85505849,210.09,210.01,16.6655]
[1731297730199,21.85505849,210.07,210.01,16.6655]
[1731297730713,21.85505849,210.05,210.01,16.6655]
[1731297730915,21.85505849,210.05,210.01,11.9039]
[1731297731102,21.85505849,210.1,210.01,11.9039]
[1731297731103,21.85505849,210.03,210.01,11.9039]
[1731297731298,21.85505849,210.04,209.99,4.7621]
[1731297731816,21.85505849,210.03,209.99,4.7621]
[1731297732411,21.85505849,210.03,209.96,16.6695]
[1731297732713,21.85505849,210.02,209.96,11.907]
[1731297733016,21.85505849,209.99,209.94,4.7632]
[1731297733196,21.85505849,209.97,209.94,4.7632]
[1731297733396,21.85505849,209.99,209.91,37.12845849]
[1731297733710,21.85505849,209.99,209.92,4.7637]
[1731297734616,21.85505849,209.96,209.9,16.6743]
[1731297735818,21.85505849,209.93,209.86,4.765]
[1731297736017,21.85505849,209.95,209.87,21.85505849]
[1731297736311,21.85505849,209.94,209.87,21.85505849]
[1731297736821,21.85505849,209.93,209.86,4.765]
[1731297737293,21.85505849,209.95,209.87,21.85505849]
[1731297737494,21.85505849,209.93,209.86,16.6777]
[1731297738104,21.85505849,209.92,209.86,16.6777]
[1731297738302,21.85505849,209.88,209.79,11.9163]
[1731297738507,21.85505849,209.86,209.79,11.9163]
[1731297738718,21.85505849,209.86,209.8,21.85505849]
[1731297739821,21.85505849,209.86,209.79,16.6827]
[1731297740418,21.85505849,209.9,209.82,21.85505849]
[1731297741194,21.85505849,209.9,209.83,4.7657]
[1731297741807,21.85505849,209.9,209.75,30.3473]
[1731297741808,21.85505849,209.84,209.73,11.9195]
[1731297741993,21.85505849,209.81,209.73,33.77455849]
[1731297742197,21.85505849,209.83,209.75,21.85505849]
[1731297742405,21.85505849,209.85,209.77,21.85505849]
[1731297742607,21.85505849,209.87,209.79,21.85505849]
[1731297743422,21.85505849,209.87,209.79,26.62155849]
[1731297744615,21.85505849,209.89,209.81,21.85505849]
[1731297745616,21.85505849,209.87,209.79,38.53815849]
[1731297748123,26.61995849,209.87,209.79,33.77165849]
[1731297748508,21.85505849,209.85,209.79,11.9166]
[1731297749018,21.85505849,209.83,209.77,21.85505849]
[1731297749406,21.85505849,209.83,209.76,26.62235849]
[1731297749804,26.62035849,209.85,209.76,26.62235849]
[1731297750024,26.62035849,209.85,209.76,38.54065849]
[1731297751126,21.85505849,209.83,209.76,33.77335849]
[1731297751709,21.85505849,209.83,209.76,11.9183]
[1731297751906,21.85505849,209.83,209.74,21.85505849]
[1731297751907,21.85505849,209.81,209.74,21.85505849]
[1731297752616,21.85505849,209.82,209.75,21.85505849]
[1731297752822,21.85505849,209.83,209.75,21.85505849]
[1731297753328,21.85505849,209.83,209.75,26.62245849]
[1731297753549,21.85505849,209.83,209.76,21.85505849]
[1731297754821,21.85505849,209.81,209.72,21.85505849]
[1731297755013,21.85505849,209.79,209.72,21.85505849]
[1731297755626,21.85505849,209.79,209.71,38.54465849]
[1731297755935,21.85505849,209.78,209.71,16.6896]
[1731297758017,21.85505849,209.79,209.72,21.85505849]
[1731297758231,21.85505849,209.79,209.72,26.62305849]
[1731297759430,21.85505849,209.79,209.72,4.768]
[1731297762239,26.62175849,209.79,209.72,4.768]
[1731297762538,26.62175849,209.79,209.71,38.54465849]
[1731297762733,21.85505849,209.76,209.71,11.9212]
[1731297762937,4.7667,209.79,209.58,120.6567]
[1731297762938,21.85505849,209.72,209.66,11.9236]
[1731297763235,21.85505849,209.7,209.64,20.6031]
[1731297763732,21.85505849,209.69,209.64,15.8331]
[1731297764235,21.85505849,209.71,209.64,37.68815849]
[1731297764540,45.63194249,209.72,209.64,49.61335849]
[1731297764732,21.85505849,209.71,209.64,49.61335849]
[1731297765238,21.85505849,209.68,209.64,11.9252]
[1731297765622,21.85505849,209.68,209.61,4.7707]
[1731297765834,21.85505849,209.66,209.6,16.6983]
[1731297766728,45.63194249,209.67,209.6,16.6983]
[1731297767423,21.85505849,209.68,209.61,21.85505849]
[1731297767630,21.85505849,209.69,209.62,21.85505849]
[1731297768637,21.85505849,209.69,209.63,4.7703]
[1731297768942,45.63194249,209.7,209.63,4.7703]
[1731297769140,45.63194249,209.7,209.63,38.55105849]
[1731297769523,21.85505849,209.71,209.63,38.55105849]
[1731297769725,23.776884,209.71,209.64,21.85505849]
[1731297769920,45.63194249,209.71,209.64,21.85505849]
[1731297770140,21.85505849,209.71,209.64,21.85505849]
[1731297770730,21.85505849,209.71,209.65,4.7698]
[1731297771617,45.63194249,209.72,209.65,4.7698]
[1731297771840,45.63194249,209.72,209.65,16.6944]
[1731297772049,45.63194249,209.72,209.65,38.54945849]
[1731297772542,21.85505849,209.73,209.65,38.54945849]
[1731297772837,26.62265849,209.75,209.68,21.85505849]
[1731297773342,21.85505849,209.76,209.68,21.85505849]
[1731297773526,21.85505849,209.75,209.68,21.85505849]
[1731297773840,21.85505849,209.76,209.68,21.85505849]
[1731297774034,21.85505849,209.75,209.68,21.85505849]
[1731297774235,21.85505849,209.74,209.67,21.85505849]
[1731297774539,21.85505849,209.74,209.68,16.692]
[1731297775427,21.85505849,209.72,209.68,11.9229]
[1731297776068,21.85505849,209.7,209.64,4.7699]
[1731297776730,28.545384,209.71,209.64,4.7699]
[1731297776928,13.63698942,209.7,209.64,4.7699]
[1731297777130,13.63698942,209.68,209.63,11.9254]
[1731297777328,13.63698942,209.67,209.63,11.9254]
[1731297777544,13.63698942,209.66,209.63,11.9254]
[1731297777718,23.776884,209.65,209.61,4.7707]
[1731297777923,37.41387342,209.65,209.59,4.771]
[1731297778147,13.63698942,209.64,209.58,16.6995]
[1731297778329,23.776884,209.63,209.58,16.6995]
[1731297778532,37.41387342,209.63,209.58,11.9281]
[1731297778842,45.61143464,209.63,209.58,11.9281]
[1731297779021,45.61143464,209.63,209.58,16.6995]
[1731297779420,21.83455064,209.67,209.6,21.83455064]
[1731297779625,21.83455064,209.67,209.59,21.83455064]
[1731297779830,21.83455064,209.66,209.58,38.53405064]
[1731297780226,21.83455064,209.67,209.6,21.83455064]
[1731297780441,21.83455064,209.69,209.61,38.53215064]
[1731297780642,23.776884,209.68,209.62,21.83455064]
[1731297780850,11.9189,209.75,209.65,21.83455064]
[1731297780851,21.83455064,209.72,209.65,21.83455064]
[1731297781033,21.83455064,209.73,209.66,21.83455064]
[1731297781241,21.83455064,209.75,209.68,21.83455064]
[1731297781551,21.83455064,209.76,209.68,21.83455064]
[1731297781743,21.83455064,209.75,209.68,21.83455064]
[1731297781945,21.83455064,209.75,209.67,21.83455064]
[1731297782334,23.776884,209.74,209.68,16.692]
[1731297782857,21.83455064,209.77,209.69,21.83455064]
[1731297783148,21.83455064,209.82,209.74,21.83455064]
[1731297783347,21.83455064,209.82,209.75,21.83455064]
[1731297783528,21.83455064,209.83,209.76,21.83455064]
[1731297784051,21.83455064,209.78,209.7,21.83455064]
[1731297784647,21.83455064,209.77,209.71,16.6896]
[1731297785757,21.83455064,209.78,209.71,33.75575064]
[1731297785957,21.83455064,209.79,209.72,21.83455064]
[1731297786133,45.61143464,209.8,209.72,21.83455064]
[1731297786538,21.83455064,209.83,209.76,21.83455064]
[1731297786752,23.776884,209.82,209.75,21.83455064]
[1731297786953,21.83455064,209.82,209.75,21.83455064]
[1731297787144,21.83455064,209.81,209.74,21.83455064]
[1731297787331,21.83455064,209.81,209.72,21.83455064]
[1731297787639,21.83455064,209.81,209.73,16.688]